bitfinex/quotes_SOLUSD_20250601
["timestamp","ask_amount","ask_price","bid_price","bid_amount"]
[1748737237278,54.2367884,156.38,156.33,14.3567884]
[1748737237479,20.75146802,156.38,156.33,14.3567884]
[1748737237682,54.2367884,156.4,156.35,14.3567884]
[1748737238212,32.4522628,156.41,156.36,14.3567884]
[1748737238503,14.3567884,156.4,156.35,14.3567884]
[1748737239608,20.75086064,156.4,156.35,14.3567884]
[1748737239821,20.75086064,156.4,156.35,20.7526895]
[1748737240006,20.75086064,156.4,156.35,14.3567884]
[1748737240795,20.75086064,156.4,156.33,6.39662562]
[1748737241001,20.75086064,156.4,156.35,14.3567884]
[1748737241602,14.3567884,156.38,156.31,1.5795]
[1748737241811,14.3567884,156.38,156.33,14.3567884]
[1748737242118,6.39407224,156.4,156.33,14.3567884]
[1748737242290,14.3567884,156.37,156.33,14.3567884]
[1748737242696,6.39407224,156.4,156.34,14.3567884]
[1748737242886,14.3567884,156.38,156.33,14.3567884]
[1748737244409,20.75152503,156.38,156.33,14.3567884]
[1748737244600,20.75152503,156.38,156.33,20.75346605]
[1748737245008,20.75152503,156.38,156.34,14.3567884]
[1748737245419,6.39473663,156.38,156.34,14.3567884]
[1748737245715,20.75152503,156.38,156.34,14.3567884]
[1748737246805,20.75105913,156.39,156.34,14.3567884]
[1748737247708,6.39427073,156.39,156.34,14.3567884]
[1748737247893,20.75105913,156.39,156.34,14.3567884]
[1748737249005,20.75105913,156.39,156.34,20.7529211]
[1748737249205,20.75077845,156.4,156.35,14.3567884]
[1748737249602,12.1484,156.41,156.36,14.3567884]
[1748737249807,1.5884,156.41,156.37,14.3567884]
[1748737250199,22.3387732,156.41,156.36,14.3567884]
[1748737250398,22.3387732,156.41,156.33,0.28432314]
[1748737250598,22.3387732,156.41,156.36,14.3567884]
[1748737251718,22.3387732,156.41,156.35,6.39582355]
[1748737252028,22.3387732,156.41,156.36,14.3567884]
[1748737253131,22.3387732,156.41,156.34,6.39618655]
[1748737253319,22.3387732,156.41,156.36,14.3567884]
[1748737253515,22.3387732,156.41,156.34,6.39618655]
[1748737253726,14.3567884,156.38,156.32,32.39700221]
[1748737254045,14.3567884,156.38,156.33,14.3567884]
[1748737254249,14.3567884,156.37,156.32,40.3567884]
[1748737255123,14.3567884,156.38,156.33,14.3567884]
[1748737255511,6.39508857,156.37,156.33,14.3567884]
[1748737258829,20.75187697,156.37,156.32,14.3567884]
[1748737259030,14.3567884,156.36,156.31,14.3567884]
[1748737260120,14.3567884,156.36,156.31,20.75427983]
[1748737260833,54.2167884,156.37,156.32,14.3567884]
[1748737261132,60.61201078,156.37,156.32,14.3567884]
[1748737261534,60.61201078,156.37,156.32,20.75383014]
[1748737261740,60.61201078,156.37,156.32,14.3567884]
[1748737261936,14.3567884,156.33,156.29,6.39828412]
[1748737262119,14.3567884,156.33,156.29,20.75507252]
[1748737263011,62.2429438,156.37,156.29,20.75507252]
[1748737263207,14.3567884,156.33,156.29,20.75507252]
[1748737265031,20.75379192,156.33,156.28,14.3567884]
[1748737265232,14.3567884,156.32,156.27,46.75568787]
[1748737266568,14.3567884,156.32,156.28,14.3567884]
[1748737267864,14.3567884,156.32,156.28,20.7552313]
[1748737268767,14.3567884,156.33,156.28,20.7552313]
[1748737270865,14.3567884,156.33,156.28,6.3984429]
[1748737271073,14.3567884,156.33,156.28,20.7552313]
[1748737271876,6.39439918,156.39,156.32,14.3567884]
[1748737272047,40.3567884,156.38,156.33,14.3567884]
[1748737272255,46.75149851,156.38,156.33,14.3567884]
[1748737272557,46.75149851,156.38,156.31,14.3567884]
[1748737272558,14.3567884,156.35,156.31,14.3567884]
[1748737273669,14.3567884,156.35,156.31,20.75398889]
[1748737275080,54.2367884,156.37,156.32,14.3567884]
[1748737275675,54.2367884,156.37,156.33,14.3567884]
[1748737276070,14.3567884,156.37,156.33,14.3567884]
[1748737276278,14.3567884,156.38,156.34,14.3567884]
[1748737276479,14.3567884,156.39,156.34,14.3567884]
[1748737276888,12.1176,156.41,156.36,6.39549756]
[1748737277076,14.3567884,156.4,156.36,20.75228596]
[1748737277275,54.2367884,156.4,156.36,20.75228596]
[1748737278669,14.3567884,156.4,156.36,20.75228596]
[1748737278871,14.3567884,156.4,156.35,14.3567884]
[1748737279973,20.75069518,156.4,156.35,14.3567884]
[1748737284172,14.3567884,156.39,156.35,14.3567884]
[1748737284973,14.3567884,156.39,156.33,6.39658468]
[1748737284974,14.3567884,156.37,156.33,14.3567884]
[1748737285175,14.3567884,156.36,156.31,31.4931884]
[1748737285396,14.3567884,156.36,156.31,20.9331884]
[1748737285897,6.39590661,156.35,156.31,20.9331884]
[1748737286681,20.75234049,156.36,156.31,20.9331884]
[1748737287599,20.75234049,156.36,156.31,27.33066122]
[1748737289429,14.3567884,156.38,156.33,14.3567884]
[1748737290127,14.3567884,156.38,156.33,20.75337101]
[1748737290634,20.75157436,156.38,156.33,20.75337101]
[1748737292231,14.3567884,156.38,156.33,20.75337101]
[1748737292911,20.75151318,156.38,156.33,20.75337101]
[1748737294433,14.3567884,156.38,156.33,20.75337101]
[1748737294631,39.86,156.39,156.34,14.3567884]
[1748737295726,14.3567884,156.4,156.35,6.39590661]
[1748737295727,20.75076058,156.4,156.35,6.39590661]
[1748737295913,60.61076058,156.4,156.35,6.39590661]
[1748737297444,20.75108929,156.39,156.34,20.75295632]
[1748737298343,14.3567884,156.39,156.34,20.75295632]
[1748737301427,20.75105985,156.39,156.34,20.75295632]
[1748737304568,14.3567884,156.38,156.34,20.75295632]
[1748737304865,14.3567884,156.38,156.33,14.3567884]
[1748737305267,14.3567884,156.38,156.34,14.3567884]
[1748737305875,20.75147086,156.38,156.33,14.3567884]
[1748737309075,14.3567884,156.38,156.34,6.39631572]
[1748737312581,14.3567884,156.37,156.32,14.3567884]
[1748737312757,14.3567884,156.36,156.31,14.3567884]
[1748737314076,14.3567884,156.36,156.31,20.75419522]
[1748737316983,6.5364323,156.39,156.32,14.3567884]
[1748737317184,14.3567884,156.37,156.32,14.3567884]
[1748737317355,14.3567884,156.36,156.31,20.75419522]
[1748737318779,14.3567884,156.34,156.28,36.56]
[1748737318984,14.3567884,156.33,156.29,6.39818768]
[1748737319188,39.84,156.35,156.29,6.39818768]
[1748737319189,14.3567884,156.32,156.29,6.39818768]
[1748737319389,14.3567884,156.32,156.27,20.7559693]
[1748737320288,14.3567884,156.32,156.27,6.3991809]
[1748737320893,14.3567884,156.32,156.27,20.7559693]
[1748737322190,20.75400867,156.32,156.27,20.7559693]
[1748737323772,14.3567884,156.32,156.27,20.7559693]
[1748737323968,14.3567884,156.31,156.27,6.3991809]
[1748737324669,14.3567884,156.3,156.26,6.39953921]
[1748737324870,14.3567884,156.29,156.26,6.39953921]
[1748737325681,14.3567884,156.28,156.21,1.5863]
[1748737325880,14.3567884,156.27,156.22,14.3567884]
[1748737326093,39.84,156.3,156.21,27.5863]
[1748737326094,14.3567884,156.26,156.21,27.5863]
[1748737326304,14.3567884,156.26,156.21,41.9430884]
[1748737326509,14.3567884,156.28,156.23,14.3567884]
[1748737327008,10.56,156.29,156.26,14.3567884]
[1748737327496,54.1967884,156.31,156.27,14.3567884]
[1748737327681,54.1967884,156.31,156.28,6.39877143]
[1748737331311,39.84,156.31,156.28,20.75555983]
[1748737332709,50.4,156.33,156.29,14.3567884]
[1748737333214,10.56,156.33,156.29,14.3567884]
[1748737333891,24.9167884,156.33,156.29,14.3567884]
[1748737334315,24.9167884,156.33,156.28,36.75248841]
[1748737338002,10.56,156.33,156.29,14.3567884]
[1748737338716,19.77891457,156.33,156.28,31.61461458]
[1748737341747,19.77891457,156.33,156.28,15.617686]
[1748737342640,9.21891457,156.31,156.28,6.39877143]
[1748737342844,10.56,156.33,156.26,6.39959042]
[1748737342845,9.21891457,156.3,156.26,6.39959042]
[1748737344451,9.21891457,156.27,156.24,6.40040962]
[1748737344627,14.41437466,156.28,156.24,6.40040962]
[1748737348344,39.82,156.29,156.24,6.40040962]
[1748737348549,14.41437466,156.28,156.24,6.40040962]
[1748737350744,14.41437466,156.27,156.24,6.40040962]
[1748737351530,14.41437466,156.25,156.21,6.40163168]
[1748737351744,14.41437466,156.23,156.18,14.41437466]
[1748737351949,14.41437466,156.22,156.17,20.81765313]
[1748737352631,14.41437466,156.22,156.17,6.40327847]
[1748737352839,39.82,156.25,156.17,6.40327847]
[1748737352840,54.23437466,156.21,156.17,6.40327847]
[1748737353028,14.41437466,156.2,156.17,6.40327847]
[1748737354035,14.41437466,156.2,156.16,6.40368852]
[1748737354553,54.23437466,156.21,156.16,20.81806318]
[1748737359161,54.23437466,156.21,156.14,1.53848853]
[1748737359162,14.41437466,156.18,156.14,1.53848853]
[1748737359470,54.23437466,156.17,156.14,1.53848853]
[1748737360279,54.23437466,156.17,156.14,22.35734239]
[1748737360280,39.82,156.17,156.14,22.35734239]
[1748737360463,39.84,156.19,156.16,14.41437466]
[1748737361456,39.84,156.19,156.17,6.40327847]
[1748737366159,39.84,156.19,156.15,6.40409862]
[1748737366362,54.25437466,156.19,156.15,20.81847328]
[1748737366562,54.25437466,156.19,156.15,6.40409862]
[1748737367478,14.41437466,156.17,156.14,7.94296416]
[1748737367660,14.41437466,156.17,156.14,1.53848853]
[1748737368384,14.41437466,156.16,156.14,1.53848853]
[1748737369852,14.41437466,156.16,156.14,7.9428566]
[1748737370788,36.54,156.21,156.14,7.9428566]
[1748737370959,39.84,156.18,156.14,22.35723126]
[1748737371279,54.25437466,156.18,156.14,7.9428566]
[1748737372095,39.84,156.18,156.14,7.9428566]
[1748737372771,39.84,156.18,156.14,22.35723126]
[1748737372971,39.84,156.19,156.14,22.35723126]
[1748737373172,14.41437466,156.18,156.14,7.9428566]
[1748737376274,54.23437466,156.19,156.14,7.9428566]
[1748737376691,54.23437466,156.19,156.14,22.35723126]
[1748737383512,54.23437466,156.19,156.14,38.36850319]
[1748737383693,39.82,156.2,156.14,23.95412853]
[1748737383897,54.23437466,156.2,156.14,7.9428566]
[1748737384110,14.41437466,156.19,156.14,22.35723126]
[1748737385117,39.82,156.2,156.14,7.9428566]
[1748737385332,39.82,156.2,156.15,3.55812126]
[1748737385529,54.23437466,156.2,156.15,3.55812126]
[1748737386621,54.23437466,156.2,156.16,6.40368852]
[1748737386957,54.23437466,156.2,156.16,20.81806318]
[1748737386958,39.82,156.2,156.16,20.81806318]
[1748737387168,27.65646157,156.23,156.16,20.81806318]
[1748737387169,174.33317438,156.24,156.19,14.41437466]
[1748737387450,25.33317438,156.24,156.21,14.41437466]
[1748737388614,25.33317438,156.24,156.22,14.41437466]
[1748737388812,25.33317438,156.24,156.23,14.41437466]
[1748737390369,25.33317438,156.24,156.22,20.8154696]
[1748737391448,46.21884634,156.28,156.21,6.4015902]
[1748737391449,54.23437466,156.28,156.21,6.4015902]
[1748737391649,14.41437466,156.23,156.19,6.40245854]
[1748737391838,62.50018924,156.28,156.17,16.00731698]
[1748737391839,14.41437466,156.21,156.17,6.40327847]
[1748737392432,14.41437466,156.21,156.17,20.81765313]
[1748737394951,14.41437466,156.22,156.17,20.81765313]
[1748737397635,14.41437466,156.2,156.17,6.40327847]
[1748737398372,6.40096477,156.23,156.15,6.40374322]
[1748737398373,14.41437466,156.18,156.15,6.40374322]
[1748737399081,14.41437466,156.17,156.14,7.94284814]
[1748737402057,14.41437466,156.18,156.14,7.94284814]
[1748737402379,14.41437466,156.21,156.16,14.41437466]
[1748737403571,14.41437466,156.2,156.15,14.41437466]
[1748737403966,14.41437466,156.19,156.14,38.36849473]
[1748737404758,14.41437466,156.18,156.14,7.94284814]
[1748737404964,14.41437466,156.17,156.14,7.94284814]
[1748737405980,14.41437466,156.17,156.14,1.53848853]
[1748737408486,14.41437466,156.17,156.14,7.94296654]
[1748737409303,14.41437466,156.17,156.14,1.53848853]
[1748737409814,14.41437466,156.16,156.14,1.53848853]
[1748737409996,14.41437466,156.15,156.14,1.53848853]
[1748737411984,20.81847328,156.15,156.14,1.53848853]
[1748737412979,20.96063485,156.15,156.14,1.53848853]
[1748737413177,39.75244528,156.15,156.14,1.53848853]
[1748737414193,39.75244528,156.15,156.04,128.7]
[1748737414194,57.83432314,156.14,155.92,5.12652309]
[1748737414390,6.40409862,156.15,155.86,2.53848853]
[1748737414391,19.21,155.99,155.86,2.53848853]
[1748737414628,26.0,155.97,155.86,2.53848853]
[1748737414783,26.0,155.97,155.9,14.41437466]
[1748737414985,6.41025641,156.0,155.9,14.41437466]
[1748737415296,6.41025641,156.0,155.86,2.53848853]
[1748737415297,14.41437466,155.99,155.88,26.0]
[1748737415488,14.41437466,155.98,155.86,2.53848853]
[1748737415696,26.0,156.0,155.86,2.53848853]
[1748737415697,26.0,156.0,155.9,14.41437466]
[1748737415879,14.41437466,155.98,155.9,14.41437466]
[1748737416294,14.41437466,155.95,155.88,14.41437466]
[1748737416721,14.41437466,155.96,155.88,14.41437466]
[1748737417333,14.41437466,155.96,155.86,2.53848853]
[1748737417334,14.41437466,155.92,155.86,2.53848853]
[1748737417495,14.41437466,155.9,155.86,2.53848853]
[1748737417903,14.41437466,155.92,155.86,2.53848853]
[1748737418418,14.41437466,155.89,155.86,2.53848853]
[1748737419202,6.41361736,155.92,155.86,2.53848853]
[1748737419526,14.41437466,155.95,155.9,14.41437466]
[1748737419735,138.82779855,156.0,155.9,26.0]
[1748737419736,83.29342389,156.0,155.9,26.0]
[1748737419915,83.29342389,156.0,155.93,14.41437466]
[1748737420109,14.41437466,155.99,155.93,14.41437466]
[1748737420298,83.29342389,156.0,155.93,20.82724255]
[1748737420504,14.41437466,155.99,155.93,20.82724255]
[1748737420825,14.41437466,155.98,155.93,20.82724255]
[1748737421523,14.41437466,155.98,155.93,6.41286789]
[1748737421709,14.41437466,155.97,155.91,6.41395676]
[1748737421909,14.41437466,155.96,155.91,6.41395676]
[1748737422118,14.41437466,155.96,155.91,20.82833142]
[1748737422522,14.41437466,155.94,155.89,20.82874855]
[1748737422834,21.71257802,155.93,155.89,6.41437389]
[1748737423037,41.12,155.98,155.87,6.4155534]
[1748737423038,21.71257802,155.92,155.87,6.4155534]
[1748737423346,21.71257802,155.91,155.86,30.66702877]
[1748737423629,21.71257802,155.94,155.88,21.71257802]
[1748737423840,21.71257802,155.94,155.89,21.71257802]
[1748737424047,21.71257802,155.93,155.86,50.99448667]
[1748737424339,21.71257802,155.99,155.92,21.71257802]
[1748737424541,21.71257802,155.98,155.94,6.41272284]
[1748737425435,21.71257802,155.98,155.93,6.41313409]
[1748737425937,21.71257802,155.99,155.93,28.12571211]
[1748737426341,22.21257802,155.99,155.93,28.12571211]
[1748737426515,21.71257802,155.98,155.93,6.41313409]
[1748737427234,21.71257802,155.97,155.93,6.41313409]
[1748737427732,21.71257802,155.98,155.93,21.71257802]
[1748737428130,21.71257802,155.99,155.94,21.71257802]
[1748737429251,105.00600191,156.0,155.95,28.12456504]
[1748737431976,83.29342389,156.0,155.95,28.12456504]
[1748737432161,105.00600191,156.0,155.95,28.12456504]
[1748737432680,21.71257802,155.99,155.95,6.41198702]
[1748737433386,105.00600191,156.0,155.95,28.12456504]
[1748737434386,83.29342389,156.0,155.95,28.12456504]
[1748737434577,105.00600191,156.0,155.95,28.12456504]
[1748737437587,145.92600191,156.0,155.95,28.12456504]
[1748737438589,145.92600191,156.0,155.95,15.30323196]
[1748737439769,62.63257802,156.0,155.95,21.71257802]
[1748737440381,68.98293548,156.0,155.95,21.71257802]
[1748737440759,68.98293548,156.0,155.95,28.12488736]
[1748737440995,21.94704745,155.99,155.95,28.12488736]
[1748737441789,21.94704745,155.99,155.95,21.71257802]
[1748737442470,21.94704745,155.99,155.94,28.12527367]
[1748737443496,21.71257802,155.95,155.92,115.6]
[1748737443662,0.23446943,155.94,155.92,32.41344258]
[1748737444075,0.23446943,155.94,155.92,54.1260206]
[1748737444680,0.23446943,155.94,155.92,46.88071079]
[1748737446197,0.23446943,155.94,155.93,14.46726821]
[1748737448987,0.23446943,155.94,155.93,39.8143743]
[1748737450103,0.23446943,155.94,155.93,129.4143743]
[1748737459826,0.23446943,155.94,155.93,139.4143743]
[1748737459993,14.46726821,156.04,155.98,0.28432314]
[1748737460195,14.46726821,156.04,155.99,14.46726821]
[1748737461314,14.46726821,156.05,156.0,14.46726821]
[1748737461921,14.46726821,156.05,156.01,6.40984552]
[1748737463106,167.933972,156.12,156.02,14.46726821]
[1748737463107,11.06,156.1,156.02,14.46726821]
[1748737463303,14.46726821,156.06,156.02,14.46726821]
[1748737463621,14.46726821,156.06,156.01,20.87711373]
[1748737463793,40.5,156.08,156.03,20.87629211]
[1748737464102,14.46726821,156.07,156.03,20.87629211]
[1748737464502,54.96726821,156.08,156.03,20.87629211]
[1748737464905,14.46726821,156.08,156.03,36.89885187]
[1748737465105,14.46726821,156.08,156.04,14.46726821]
[1748737466923,14.46726821,156.08,156.05,6.40820249]
[1748737467622,43.46504808,156.13,156.05,6.40820249]
[1748737467800,14.46726821,156.11,156.06,14.46726821]
[1748737469022,14.46726821,156.11,156.07,6.4073813]
[1748737469609,40.42,156.12,156.07,6.4073813]
[1748737469921,14.46726821,156.1,156.07,6.4073813]
[1748737471138,14.46726821,156.11,156.07,6.4073813]
[1748737472032,6.13406821,156.11,156.08,8.1932]
[1748737472229,29.84766821,156.12,156.08,6.5413]
[1748737472413,14.46726821,156.11,156.08,6.5413]
[1748737472619,11.78081592,156.15,156.08,14.46726821]
[1748737472819,14.46726821,156.15,156.11,14.46726821]
[1748737473041,8.20884512,156.23,156.12,14.46726821]
[1748737473201,8.20884512,156.23,156.13,6.40491897]
[1748737473202,14.46726821,156.17,156.13,6.40491897]
[1748737473402,14.46726821,156.19,156.14,14.46726821]
[1748737473602,14.46726821,156.19,156.13,6.40491897]
[1748737473603,14.46726821,156.2,156.15,14.46726821]
[1748737473829,40.38,156.21,156.15,14.46726821]
[1748737474001,14.46726821,156.2,156.15,14.46726821]
[1748737474201,10.51800184,156.2,156.15,10.51800184]
[1748737474801,10.51800184,156.2,156.16,6.40368852]
[1748737475252,11.06,156.23,156.17,10.51800184]
[1748737475408,10.51800184,156.22,156.17,10.51800184]
[1748737475807,11.73858109,156.25,156.18,10.51800184]
[1748737476015,22.25658293,156.25,156.2,10.51800184]
[1748737476633,50.85800184,156.27,156.22,10.51800184]
[1748737476839,50.85800184,156.27,156.23,6.4008193]
[1748737477343,50.85800184,156.27,156.24,6.2912]
[1748737477522,10.82,156.29,156.24,6.2912]
[1748737477838,10.51800184,156.27,156.24,6.2912]
[1748737478540,10.51800184,156.27,156.25,2.3979008]
[1748737478742,10.51800184,156.27,156.26,2.39790058]
[1748737478959,10.51800184,156.27,156.24,12.69125104]
[1748737479240,40.32,156.28,156.24,6.2912]
[1748737479241,10.51800184,156.25,156.24,6.2912]
[1748737479618,10.51800184,156.25,156.24,8.6891562]
[1748737479819,10.51800184,156.25,156.24,8.6891561]
[1748737480015,10.51800184,156.25,156.24,6.2912]
[1748737481147,10.51800184,156.25,156.24,8.68929239]
[1748737481450,10.51800184,156.25,156.24,8.68942158]
[1748737482249,10.51800184,156.25,156.24,6.2912]
[1748737482457,10.51800184,156.25,156.19,6.40245854]
[1748737482658,10.51800184,156.23,156.19,6.40245854]
[1748737483449,10.51800184,156.22,156.19,6.40245854]
[1748737484153,10.51800184,156.2,156.17,6.40298523]
[1748737484543,10.51800184,156.19,156.17,6.40298523]
[1748737484745,10.51800184,156.2,156.17,6.40298523]
[1748737485261,10.51800184,156.19,156.16,32.40367626]
[1748737485659,10.51800184,156.18,156.16,6.40367626]
[1748737486356,10.51800184,156.17,156.15,6.40397109]
[1748737486693,10.51800184,156.17,156.14,26.0]
[1748737486977,10.51800184,156.16,156.14,26.0]
[1748737487353,10.51800184,156.17,156.14,26.0]
[1748737487561,10.51800184,156.17,156.14,32.40447104]
[1748737488852,10.51800184,156.18,156.14,32.40447104]
[1748737489052,10.51800184,156.18,156.14,42.92247288]
[1748737490775,10.51800184,156.18,156.16,6.40368852]
[1748737490961,10.51800184,156.19,156.16,6.40368852]
[1748737491784,10.51800184,156.2,156.16,6.40368852]
[1748737493197,10.51800184,156.2,156.16,16.92169036]
[1748737493491,10.51800184,156.2,156.16,6.40368852]
[1748737495896,10.51800184,156.19,156.16,6.40368852]
[1748737497176,10.51800184,156.18,156.16,6.40368852]
[1748737500391,10.51800184,156.17,156.11,6.40573954]
[1748737500593,10.51800184,156.14,156.11,32.40573954]
[1748737500904,10.51800184,156.16,156.11,32.93809023]
[1748737501103,10.51800184,156.19,156.14,10.51800184]
[1748737501315,50.61800184,156.2,156.15,2.39133878]
[1748737501521,10.51800184,156.18,156.16,2.39133847]
[1748737501806,10.51800184,156.17,156.12,10.51800184]
[1748737502205,10.51800184,156.17,156.13,2.39143625]
[1748737502508,10.51800184,156.17,156.13,6.40491897]
[1748737502706,10.51800184,156.17,156.13,22.41721641]
[1748737503910,10.51800184,156.14,156.12,6.40517428]
[1748737504110,10.51800184,156.14,156.13,2.39170941]
[1748737504403,10.51800184,156.14,156.11,6.40573954]
[1748737505502,10.51800184,156.14,156.13,6.40491897]
[1748737505897,10.51800184,156.15,156.13,6.40491897]
[1748737506204,10.51800184,156.15,156.14,2.39175375]
[1748737506390,10.51800184,156.15,156.13,6.40491897]
[1748737506912,10.51800184,156.15,156.11,6.40573954]
[1748737507411,10.51800184,156.14,156.11,6.40573954]
[1748737508916,193.64964886,156.22,156.13,10.51800184]
[1748737509119,1.559,156.24,156.15,10.51800184]
[1748737509120,17.20097471,156.23,156.15,10.51800184]
[1748737509416,10.51800184,156.2,156.16,2.39132708]
[1748737509622,10.51800184,156.2,156.15,10.51800184]
[1748737509822,10.51800184,156.2,156.16,2.39132772]
[1748737510115,10.51800184,156.2,156.15,10.51800184]
[1748737510116,10.51800184,156.2,156.17,2.39132772]
[1748737510307,10.51800184,156.2,156.15,10.51800184]
[1748737511214,10.8,156.23,156.16,16.92169036]
[1748737511215,10.51800184,156.21,156.16,16.92169036]
[1748737511535,10.51800184,156.21,156.17,10.51800184]
[1748737512203,10.51800184,156.21,156.16,32.93091167]
[1748737512403,10.51800184,156.2,156.16,22.41290983]
[1748737513229,57.22095524,156.23,156.16,22.41290983]
[1748737513521,10.51800184,156.2,156.16,22.41290983]
[1748737514708,10.51800184,156.2,156.16,32.93091167]
[1748737516926,57.22095524,156.23,156.16,32.93091167]
[1748737517110,10.51800184,156.21,156.16,32.93091167]
[1748737519443,10.51800184,156.21,156.17,10.51800184]
[1748737519945,10.51800184,156.25,156.2,10.51800184]
[1748737520117,10.51800184,156.25,156.21,10.51800184]
[1748737520312,10.51800184,156.25,156.17,10.51800184]
[1748737520313,10.51800184,156.25,156.2,10.51800184]
[1748737520513,10.51800184,156.24,156.19,10.51800184]
[1748737521438,10.51800184,156.22,156.2,6.40204865]
[1748737521646,10.51800184,156.21,156.17,16.92128031]
[1748737522022,39.92,156.26,156.18,10.51800184]
[1748737522333,10.51800184,156.23,156.18,10.51800184]
[1748737522723,10.51800184,156.22,156.18,10.51800184]
[1748737523323,10.51800184,156.22,156.17,22.41147466]
[1748737523324,10.51800184,156.22,156.17,32.9294765]
[1748737523534,10.51800184,156.21,156.17,16.92128031]
[1748737523947,10.51800184,156.21,156.17,6.40327847]
[1748737524757,10.51800184,156.2,156.17,6.40327847]
[1748737525068,10.51800184,156.18,156.15,6.40409862]
[1748737525224,10.66,156.22,156.15,6.40409862]
[1748737525225,10.51800184,156.17,156.15,6.40409862]
[1748737525538,10.51800184,156.18,156.14,6.40450877]
[1748737525736,10.51800184,156.19,156.14,16.92251061]
[1748737525952,10.51800184,156.2,156.15,10.51800184]
[1748737526450,10.51800184,156.19,156.14,32.93378254]
[1748737527119,10.51800184,156.19,156.14,6.40450877]
[1748737527346,10.51800184,156.18,156.14,6.40450877]
[1748737530056,10.51800184,156.19,156.14,16.92251061]
[1748737530854,10.51800184,156.2,156.15,10.51800184]
[1748737531248,1.574,156.23,156.16,10.51800184]
[1748737531249,10.51800184,156.21,156.16,10.51800184]
[1748737531440,10.51800184,156.22,156.17,10.51800184]
[1748737531753,26.0,156.24,156.17,10.51800184]
[1748737531963,10.51800184,156.23,156.18,10.51800184]
[1748737533046,10.51800184,156.23,156.19,6.40245854]
[1748737533460,10.66,156.25,156.19,6.40245854]
[1748737533461,10.51800184,156.22,156.19,6.40245854]
[1748737535145,10.51800184,156.21,156.17,6.40327847]
[1748737535336,10.51800184,156.19,156.17,6.40327847]
[1748737536942,10.51800184,156.18,156.15,6.40409862]
[1748737537140,39.9,156.21,156.15,6.40409862]
[1748737537141,10.51800184,156.17,156.15,6.40409862]
[1748737537371,10.51800184,156.18,156.15,6.40409862]
[1748737537872,10.51800184,156.19,156.15,6.40409862]
[1748737538047,39.9,156.21,156.13,26.0]
[1748737538048,10.51800184,156.17,156.14,6.40448234]
[1748737539151,10.51800184,156.15,156.09,22.09672193]
[1748737539355,10.51800184,156.13,156.09,22.09672193]
[1748737539666,10.51800184,156.13,156.09,48.09672193]
[1748737540144,10.51800184,156.13,156.1,6.4061499]
[1748737540974,10.51800184,156.16,156.12,10.51800184]
[1748737541357,10.51800184,156.16,156.11,10.51800184]
[1748737542357,10.51800184,156.16,156.12,6.40532923]
[1748737543263,10.51800184,156.14,156.12,6.40532923]
[1748737543866,50.48,156.19,156.12,6.40532923]
[1748737544175,10.51800184,156.16,156.12,6.40532923]
[1748737545762,10.51800184,156.16,156.12,10.51800184]
[1748737546272,10.51800184,156.16,156.11,10.51800184]
[1748737548063,10.51800184,156.16,156.12,6.40532923]
[1748737548502,6.54503005,156.18,156.1,6.40605266]
[1748737548657,10.51800184,156.13,156.1,6.40605266]
[1748737548857,10.51800184,156.12,156.1,6.40605266]
[1748737549975,10.51800184,156.13,156.1,6.40605266]
[1748737554091,10.51800184,156.12,156.1,6.40605266]
[1748737554266,10.51800184,156.12,156.09,32.40642808]
[1748737554466,6.40407758,156.16,156.07,16.01772151]
[1748737554467,10.51800184,156.1,156.07,26.0]
[1748737554783,39.9,156.14,156.05,6.40820249]
[1748737554784,10.51800184,156.09,156.05,6.40820249]
[1748737554961,10.56,156.13,156.05,6.40820249]
[1748737554962,10.51800184,156.08,156.05,6.40820249]
[1748737555293,10.51800184,156.1,156.05,16.92620433]
[1748737555864,10.51800184,156.09,156.05,16.92620433]
[1748737557695,26.14216157,156.12,156.0,10.56]
[1748737557884,26.14216157,156.12,156.01,22.43379841]
[1748737557885,10.51800184,156.05,156.01,22.43379841]
[1748737558089,10.51800184,156.1,156.01,58.95180025]
[1748737558090,10.51800184,156.06,156.01,58.95180025]
[1748737559473,10.51800184,156.07,156.02,10.51800184]
[1748737559675,10.51800184,156.08,156.03,10.51800184]
[1748737559877,26.0,156.12,156.05,10.51800184]
[1748737560087,10.51800184,156.09,156.05,10.51800184]
[1748737560414,10.51800184,156.09,156.01,67.36777041]
[1748737560415,10.51800184,156.09,156.04,10.51800184]
[1748737560570,10.51800184,156.1,156.05,10.51800184]
[1748737561296,10.51800184,156.1,156.06,6.40779187]
[1748737562367,10.51800184,156.09,156.06,6.40779187]
[1748737563101,10.51800184,156.07,156.02,6.40943468]
[1748737563269,6.4169,156.09,156.02,6.40943468]
[1748737563270,10.51800184,156.06,156.02,6.40943468]
[1748737563784,10.51800184,156.03,156.0,6.41011336]
[1748737564868,10.51800184,156.04,156.0,6.41011336]
[1748737565064,10.51800184,156.05,156.0,32.95375622]
[1748737565288,10.51800184,156.04,156.0,6.41011336]
[1748737565869,10.51800184,156.03,156.0,6.41011336]
[1748737566804,10.51800184,156.03,155.99,6.41066735]